fUST/lending_fUST_20240115
["ID","MTS","AMOUNT","RATE_DAILY","PERIOD"]
[311663608,1705294241881,-500.0,0.00028485,2]
[311663609,1705294241891,-500.0,0.00028486,2]
[311663610,1705294241900,-500.0,0.00028486,2]
[311663611,1705294241909,-500.0,0.00028486,2]
[311663612,1705294241919,-505.69137092,0.00028486,2]
[311663613,1705294241928,-500.0,0.00028486,2]
[311663614,1705294241938,-500.0,0.00028486,2]
[311663615,1705294241946,-500.0,0.00028486,2]
[311663616,1705294241955,-500.0,0.00028486,2]
[311663617,1705294241964,-200.33733336,0.00028486,2]
[311663618,1705294241973,-500.0,0.00028486,2]
[311663619,1705294241983,-501.28101026,0.00028486,2]
[311663620,1705294241993,-507.41897844,0.00028486,2]
[311663621,1705294242002,-420.44547826,0.00028486,2]
[311663622,1705294242011,-500.0,0.00028486,2]
[311663623,1705294242020,-500.0,0.00028486,2]
[311663624,1705294242030,-500.0,0.00028486,2]
[311663625,1705294242039,-500.0,0.00028486,2]
[311663626,1705294242048,-189.61033351,0.00028486,2]
[311663627,1705294242057,-500.0,0.00028486,2]
[311663628,1705294242066,-1000.0,0.00028486,2]
[311663629,1705294242076,-461.17843288,0.00028486,2]
[311663630,1705294242085,-500.0,0.00028486,2]
[311663631,1705294242095,-415.79701904,0.00028486,2]
[311663632,1705294242104,-504.38492076,0.00028486,2]
[311663633,1705294242114,-500.0,0.00028486,2]
[311663634,1705294242124,-500.0,0.00028486,2]
[311663635,1705294242133,-500.0,0.00028486,2]
[311663636,1705294242143,-620.7001689,0.00028486,2]
[311663637,1705294242153,-500.73512296,0.00028486,2]
[311663638,1705294242163,-500.0,0.00028486,2]
[311663639,1705294242176,-502.93276528,0.00028486,2]
[311663640,1705294242185,-500.0,0.00028486,2]
[311663641,1705294242195,-500.0,0.00028486,2]
[311663642,1705294242205,-500.0,0.00028486,2]
[311663643,1705294242214,-500.0,0.00028486,2]
[311663644,1705294242224,-500.0,0.00028486,2]
[311663645,1705294242234,-496.84283628,0.00028486,2]
[311663646,1705294242243,-503.56970682,0.00028486,2]
[311663647,1705294242253,-500.0,0.00028486,2]
[311663648,1705294242262,-501.97924145,0.00028486,2]
[311663649,1705294242272,-500.0,0.00028486,2]
[311663650,1705294242281,-169.67655628,0.00028486,2]
[311663651,1705294242291,-500.0,0.00028486,2]
[311663652,1705294242300,-500.0,0.00028486,2]
[311663653,1705294242311,-500.0,0.00028486,2]
[311663654,1705294242320,-500.0,0.00028486,2]
[311663655,1705294242329,-500.0,0.00028486,2]
[311663656,1705294242338,-500.0,0.00028486,2]
[311663657,1705294242347,-500.0,0.00028486,2]
[311663658,1705294242357,-508.45398065,0.00028486,2]
[311663659,1705294242366,-500.0,0.00028486,2]
[311663660,1705294242375,-500.0,0.00028486,2]
[311663661,1705294242384,-500.0,0.00028486,2]
[311663662,1705294242393,-909.98,0.00028486,2]
[311663663,1705294242403,-500.0,0.00028486,2]
[311663664,1705294242412,-501.15461094,0.00028486,2]
[311663665,1705294242424,-500.0,0.00028486,2]
[311663666,1705294242438,-500.0,0.00028486,2]
[311663668,1705294242452,-500.0,0.00028487,2]
[311663669,1705294242466,-500.0,0.00028487,2]
[311663670,1705294242479,-500.0,0.00028487,2]
[311663671,1705294242493,-500.0,0.00028487,2]
[311663672,1705294242503,-506.080899,0.00028487,2]
[311663673,1705294242514,-500.0,0.00028487,2]
[311663674,1705294242527,-500.0,0.00028487,2]
[311663675,1705294242539,-500.0,0.00028487,2]
[311663676,1705294242552,-844.71,0.00028487,2]
[311663677,1705294242563,-603.54,0.00028487,2]
[311663679,1705294242576,-500.0,0.00028705,2]
[311663681,1705294242587,-500.0,0.00028705,2]
[311663682,1705294242599,-500.0,0.00028705,2]
[311663683,1705294242611,-500.0,0.00028705,2]
[311663684,1705294242622,-5966.98489155,0.00028738,3]
[311663686,1705294242633,-12451.83926544,0.00028738,3]
[311663687,1705294242647,-1925.18555875,0.00028738,3]
[311663688,1705294242658,-412.90018737,0.00028758,2]
[311663689,1705294242671,-500.0,0.00028758,2]
[311663690,1705294242683,-500.0,0.00028758,2]
[311663692,1705294242695,-500.0,0.00028758,2]
[311663694,1705294242707,-545.5,0.00028758,2]
[311663695,1705294242719,-500.0,0.00028758,2]
[311663696,1705294242732,-500.0,0.00028758,2]
[311663697,1705294242743,-500.0,0.00028758,2]
[311663698,1705294242754,-500.0,0.00028758,2]
[311663699,1705294242765,-4340.56,0.00028758,2]
[311663700,1705294242779,-503.55703203,0.00028758,2]
[311663701,1705294242792,-1123.57,0.00028758,2]
[311663702,1705294242804,-349.43807217,0.00028759,2]
[311663703,1705294242817,-565.18204006,0.00028759,2]
[311663704,1705294242829,-500.0,0.00028759,2]
[311663705,1705294242841,-500.0,0.00028759,2]
[311663706,1705294242856,-500.0,0.00028759,2]
[311663707,1705294242868,-500.0,0.00028759,2]
[311663708,1705294242880,-500.0,0.00028759,2]
[311663709,1705294242892,-500.0,0.00028759,2]
[311663710,1705294242905,-500.0,0.00028759,2]
[311663711,1705294242917,-500.0,0.00028759,2]
[311663712,1705294242930,-500.0,0.00028759,2]
[311663713,1705294242943,-593.88964786,0.00028759,2]
[311663714,1705294242956,-500.0,0.00028759,2]
[311663715,1705294242967,-500.0,0.00028759,2]
[311663716,1705294242977,-263.87300385,0.00028759,2]
[311663717,1705294242988,-500.0,0.00028759,2]
[311663718,1705294242999,-500.0,0.00028759,2]
[311663719,1705294243010,-1600.74,0.00028759,2]
[311663720,1705294243021,-500.0,0.00028759,2]
[311663721,1705294243033,-2302.81,0.00028759,2]
[311663722,1705294243044,-500.0,0.00028759,2]
[311663723,1705294243055,-500.0,0.00028759,2]
[311663724,1705294243066,-500.0,0.00028759,2]
[311663725,1705294243078,-2562.21,0.00028759,2]
[311663726,1705294243088,-1838.05,0.00028759,2]
[311663727,1705294243098,-500.0,0.00028759,2]
[311663728,1705294243108,-500.0,0.00028759,2]
[311663729,1705294243118,-7625.73,0.00028759,2]
[311663730,1705294243129,-500.0,0.00028759,2]
[311663731,1705294243139,-500.0,0.00028759,2]
[311663732,1705294243150,-500.0,0.00028759,2]
[311663733,1705294243161,-500.0,0.00028759,2]
[311663734,1705294243174,-501.06750293,0.00028759,2]
[311663735,1705294243185,-500.0,0.00028759,2]
[311663736,1705294243197,-509.92698359,0.00028759,2]
[311663737,1705294243208,-500.0,0.00028759,2]
[311663738,1705294243219,-500.0,0.00028759,2]
[311663739,1705294243231,-600.84545332,0.00028759,2]
[311663740,1705294243244,-500.0,0.00028759,2]
[311663741,1705294243255,-500.0,0.00028759,2]
[311663742,1705294243266,-1226.28,0.00028759,2]
[311663743,1705294243276,-505.76347654,0.00028759,2]
[311663744,1705294243287,-500.0,0.0002876,2]
[311663745,1705294243298,-500.0,0.0002876,2]
[311663746,1705294243308,-500.0,0.0002876,2]
[311663747,1705294243319,-518.86247278,0.0002876,2]
[311663748,1705294243330,-500.0,0.0002876,2]
[311663749,1705294243342,-500.0,0.0002876,2]
[311663750,1705294243354,-500.0,0.0002876,2]
[311663751,1705294243365,-500.0,0.0002876,2]
[311663752,1705294243378,-500.0,0.0002876,2]
[311663753,1705294243388,-500.0,0.0002876,2]
[311663754,1705294243399,-500.0,0.0002876,2]
[311663755,1705294243409,-500.0,0.0002876,2]
[311663756,1705294243420,-500.0,0.0002876,2]
[311663757,1705294243431,-500.0,0.0002876,2]
[311663758,1705294243441,-526.91670753,0.0002876,2]
[311663759,1705294243452,-506.63455425,0.0002876,2]
[311663760,1705294243463,-500.0,0.0002876,2]
[311663761,1705294243474,-500.0,0.0002876,2]
[311663762,1705294243485,-500.0,0.0002876,2]
[311663763,1705294243496,-500.0,0.0002876,2]
[311663764,1705294243506,-500.0,0.0002876,2]
[311663765,1705294243518,-500.0,0.0002876,2]
[311663766,1705294243529,-500.0,0.0002876,2]
[311663767,1705294243540,-500.0,0.0002876,2]
[311663768,1705294243550,-909.98,0.0002876,2]
[311663769,1705294243661,-500.0,0.0002876,2]
[311663770,1705294243675,-500.0,0.0002876,2]
[311663771,1705294243684,-500.0,0.0002876,2]
[311663772,1705294243694,-500.0,0.00028761,2]
[311663773,1705294243703,-500.0,0.00028761,2]
[311663774,1705294243713,-500.0,0.00028761,2]
[311663775,1705294243723,-500.0,0.00028761,2]
[311663776,1705294243732,-500.0,0.00028761,2]
[311663777,1705294243743,-844.71,0.00028761,2]
[311663778,1705294243752,-603.54,0.00028761,2]
[311663779,1705294243761,-259.43960709,0.00028857,2]
[311663780,1705294243770,-155.02015262,0.00029,2]
[311663781,1705294243780,-150.0,0.00029,2]
[311663782,1705294243789,-500.0,0.00029032,2]
[311663783,1705294243799,-500.0,0.00029032,2]
[311663784,1705294243808,-500.0,0.00029032,2]
[311663785,1705294243818,-545.5,0.00029032,2]
[311663786,1705294243827,-500.0,0.00029032,2]
[311663787,1705294243837,-500.0,0.00029032,2]
[311663788,1705294243846,-500.0,0.00029032,2]
[311663789,1705294243855,-500.0,0.00029032,2]
[311663790,1705294243864,-4340.56,0.00029032,2]
[311663791,1705294243873,-1123.57,0.00029032,2]
[311663792,1705294243883,-500.0,0.00029033,2]
[311663793,1705294243893,-500.0,0.00029033,2]
[311663794,1705294243902,-500.0,0.00029033,2]
[311663795,1705294243911,-500.0,0.00029033,2]
[311663796,1705294243921,-500.0,0.00029033,2]
[311663797,1705294243930,-500.0,0.00029033,2]
[311663798,1705294243940,-500.0,0.00029033,2]
[311663799,1705294243949,-500.0,0.00029033,2]
[311663800,1705294243958,-500.0,0.00029033,2]
[311663801,1705294243967,-367.55425516,0.00029033,2]
[311663802,1705294243976,-500.0,0.00029033,2]
[311663803,1705294243986,-500.0,0.00029033,2]
[311663804,1705294243995,-1600.74,0.00029033,2]
[311663805,1705294244004,-500.0,0.00029033,2]
[311663806,1705294244014,-2302.81,0.00029033,2]
[311663807,1705294244023,-500.0,0.00029033,2]
[311663808,1705294244032,-579.14690654,0.00029033,2]
[311663809,1705294244041,-500.0,0.00029033,2]
[311663810,1705294244050,-2562.21,0.00029033,2]
[311663811,1705294244060,-1838.05,0.00029033,2]
[311663812,1705294244068,-500.0,0.00029033,2]
[311663813,1705294244077,-500.0,0.00029033,2]
[311663814,1705294244087,-7625.73,0.00029033,2]
[311663815,1705294244097,-500.0,0.00029033,2]
[311663816,1705294244106,-500.0,0.00029033,2]
[311663817,1705294244117,-500.0,0.00029033,2]
[311663818,1705294244126,-500.0,0.00029033,2]
[311663819,1705294244136,-500.0,0.00029033,2]
[311663820,1705294244147,-501.54072563,0.00029033,2]
[311663821,1705294244157,-500.0,0.00029033,2]
[311663822,1705294244167,-1226.28,0.00029033,2]
[311663823,1705294244176,-500.0,0.00029034,2]
[311663824,1705294244186,-500.90253928,0.00029034,2]
[311663825,1705294244195,-501.40100245,0.00029034,2]
[311663826,1705294244204,-500.0,0.00029034,2]
[311663827,1705294244213,-529.35214172,0.00029034,2]
[311663828,1705294244222,-507.71569125,0.00029034,2]
[311663829,1705294244231,-494.55021322,0.00029034,2]
[311663830,1705294244242,-500.0,0.00029034,2]
[311663831,1705294244251,-500.0,0.00029034,2]
[311663832,1705294244260,-505.15095378,0.00029034,2]
[311663833,1705294244269,-500.0,0.00029034,2]
[311663834,1705294244278,-500.0,0.00029034,2]
[311663835,1705294244287,-500.0,0.00029034,2]
[311663836,1705294244296,-500.0,0.00029034,2]
[311663837,1705294244305,-468.11978237,0.00029034,2]
[311663838,1705294244316,-506.40423692,0.00029034,2]
[311663839,1705294244325,-500.0,0.00029034,2]
[311663840,1705294244335,-909.98,0.00029034,2]
[311663841,1705294244344,-500.0,0.00029034,2]
[311663842,1705294244353,-552.11188716,0.00029034,2]
[311663843,1705294244362,-500.0,0.00029035,2]
[311663844,1705294244371,-500.0,0.00029035,2]
[311663845,1705294244381,-500.0,0.00029035,2]
[311663846,1705294244391,-844.71,0.00029035,2]
[311663847,1705294244401,-603.54,0.00029035,2]
[311663848,1705294244410,-490.55209365,0.00029207,2]
[311663849,1705294244419,-500.0,0.00029207,2]
[311663850,1705294244428,-619.57237379,0.00029207,2]
[311663851,1705294244437,-500.0,0.00029207,2]
[311663852,1705294244446,-791.87386656,0.00029207,2]
[311663853,1705294244455,-500.0,0.00029207,2]
[311663854,1705294244464,-500.0,0.00029207,2]
[311663855,1705294244473,-500.0,0.00029207,2]
[311663856,1705294244482,-791.87386656,0.00029207,2]
[311663857,1705294244492,-500.0,0.00029207,2]
[311663858,1705294244501,-500.0,0.00029207,2]
[311663859,1705294244510,-500.0,0.00029207,2]
[311663860,1705294244519,-500.0,0.00029207,2]
[311663861,1705294244529,-791.87386656,0.00029207,2]
[311663862,1705294244537,-500.0,0.00029207,2]
[311663863,1705294244546,-235.73961398,0.00029207,2]
[311663864,1705294244555,-500.0,0.00029207,2]
[311663865,1705294244564,-791.87386656,0.00029207,2]
[311663866,1705294244573,-500.0,0.00029207,2]
[311663867,1705294244582,-434.70452152,0.00029207,2]
[311663868,1705294244590,-500.0,0.00029207,2]
[311663869,1705294244599,-791.87386656,0.00029207,2]
[311663870,1705294244608,-791.87386656,0.00029207,2]
[311663871,1705294244617,-497.98564945,0.00029207,2]
[311663872,1705294244626,-500.0,0.00029207,2]
[311663873,1705294244635,-791.87386656,0.00029207,2]
[311663874,1705294244644,-500.0,0.00029207,2]
[311663875,1705294244653,-791.87386656,0.00029207,2]
[311663876,1705294244662,-500.0,0.00029207,2]
[311663877,1705294244671,-791.87386656,0.00029207,2]
[311663878,1705294244679,-500.0,0.00029207,2]
[311663879,1705294244688,-791.87386656,0.00029207,2]
[311663880,1705294244697,-791.87386656,0.00029207,2]
[311663881,1705294244706,-500.0,0.00029207,2]
[311663882,1705294244715,-500.0,0.00029207,2]
[311663883,1705294244724,-791.87386656,0.00029207,2]
[311663884,1705294244733,-523.48653728,0.00029207,2]
[311663885,1705294244743,-791.87386656,0.00029207,2]
[311663886,1705294244752,-500.0,0.00029207,2]
[311663887,1705294244761,-500.0,0.00029207,2]
[311663888,1705294244771,-500.0,0.00029207,2]
[311663889,1705294244779,-500.0,0.00029207,2]
[311663890,1705294244789,-791.87386656,0.00029207,2]
[311663891,1705294244798,-791.87386656,0.00029207,2]
[311663892,1705294244808,-500.0,0.00029207,2]
[311663893,1705294244817,-500.0,0.00029207,2]
[311663894,1705294244826,-500.0,0.00029207,2]
[311663895,1705294244835,-791.87386656,0.00029207,2]
[311663896,1705294244844,-791.87386656,0.00029207,2]
[311663897,1705294244853,-791.87386656,0.00029207,2]
[311663898,1705294244862,-177.56487634,0.00029207,2]
[311663899,1705294244871,-791.87386656,0.00029207,2]
[311663900,1705294244880,-500.0,0.00029207,2]
[311663901,1705294244889,-791.87386656,0.00029207,2]
[311663902,1705294244898,-791.87386656,0.00029207,2]
[311663903,1705294244908,-791.87386656,0.00029207,2]
[311663904,1705294244918,-791.87386656,0.00029207,2]
[311663905,1705294244927,-500.0,0.00029306,2]
[311663906,1705294244936,-500.0,0.00029306,2]
[311663907,1705294244945,-500.0,0.00029306,2]
[311663908,1705294244954,-545.5,0.00029306,2]
[311663909,1705294244964,-500.0,0.00029306,2]
[311663910,1705294244974,-500.0,0.00029306,2]
[311663911,1705294244983,-500.0,0.00029306,2]
[311663912,1705294244995,-500.0,0.00029306,2]
[311663913,1705294245004,-4340.56,0.00029306,2]
[311663914,1705294245014,-1123.57,0.00029306,2]
[311663915,1705294245023,-500.24,0.00029307,2]
[311663916,1705294245032,-500.0,0.00029307,2]
[311663917,1705294245041,-500.0,0.00029307,2]
[311663918,1705294245050,-500.0,0.00029307,2]
[311663919,1705294245060,-500.0,0.00029307,2]
[311663920,1705294245069,-500.0,0.00029307,2]
[311663921,1705294245078,-500.0,0.00029307,2]
[311663922,1705294245087,-500.0,0.00029307,2]
[311663923,1705294245096,-500.0,0.00029307,2]
[311663924,1705294245105,-500.0,0.00029307,2]
[311663925,1705294245114,-1600.74,0.00029307,2]
[311663926,1705294245123,-500.0,0.00029307,2]
[311663927,1705294245133,-2302.81,0.00029307,2]
[311663928,1705294245142,-500.0,0.00029307,2]
[311663929,1705294245151,-500.0,0.00029307,2]
[311663930,1705294245162,-2562.21,0.00029307,2]
[311663931,1705294245175,-1838.05,0.00029307,2]
[311663932,1705294245185,-500.0,0.00029307,2]
[311663933,1705294245196,-500.0,0.00029307,2]
[311663934,1705294245206,-7625.73,0.00029307,2]
[311663935,1705294245217,-500.0,0.00029307,2]
[311663936,1705294245226,-500.0,0.00029307,2]
[311663937,1705294245236,-500.0,0.00029307,2]
[311663938,1705294245247,-500.0,0.00029307,2]
[311663939,1705294245257,-500.0,0.00029307,2]
[311663940,1705294245266,-500.0,0.00029307,2]
[311663941,1705294245276,-1226.28,0.00029307,2]
[311663942,1705294245285,-500.0,0.00029308,2]
[311663943,1705294245294,-508.60469395,0.00029308,2]
[311663944,1705294245303,-545.74874845,0.00029308,2]
[311663945,1705294245313,-500.0,0.00029308,2]
[311663946,1705294245323,-500.0,0.00029308,2]
[311663947,1705294245332,-500.0,0.00029308,2]
[311663948,1705294245342,-500.0,0.00029308,2]
[311663949,1705294245351,-500.0,0.00029308,2]
[311663950,1705294245360,-500.0,0.00029308,2]
[311663951,1705294245369,-500.0,0.00029308,2]
[311663952,1705294245378,-909.98,0.00029308,2]
[311663953,1705294245387,-500.0,0.00029309,2]
[311663954,1705294245396,-500.0,0.00029309,2]
[311663955,1705294245405,-500.0,0.00029309,2]
[311663956,1705294245414,-844.71,0.00029309,2]
[311663957,1705294245423,-603.54,0.00029309,2]
[311663958,1705294245432,-547.89017312,0.00029351,2]
[311663959,1705294245442,-1000.0,0.00029351,7]
[311663960,1705294245451,-205.23710072,0.00029352,2]
[311663961,1705294245460,-200.0,0.00029378,15]
[311663962,1705294245469,-376.46577067,0.00029399,2]
[311663963,1705294245478,-154.95620861,0.00029484,2]
[311663964,1705294245487,-153.84014321,0.00029551,2]
[311663965,1705294245498,-500.0,0.0002958,2]
[311663966,1705294245507,-397.72546086,0.0002958,2]
[311663967,1705294245516,-545.5,0.0002958,2]
[311663968,1705294245525,-500.0,0.0002958,2]
[311663969,1705294245535,-500.0,0.0002958,2]
[311663970,1705294245544,-500.0,0.0002958,2]
[311663971,1705294245553,-500.0,0.0002958,2]
[311663972,1705294245562,-4340.56,0.0002958,2]
[311663973,1705294245571,-1123.57,0.0002958,2]
[311663974,1705294245581,-500.0,0.00029581,2]
[311663975,1705294245597,-500.0,0.00029581,2]
[311663976,1705294245614,-500.0,0.00029581,2]
[311663977,1705294245623,-500.0,0.00029581,2]
[311663978,1705294245632,-500.0,0.00029581,2]
[311663979,1705294245642,-500.0,0.00029581,2]
[311663980,1705294245650,-500.0,0.00029581,2]
[311663981,1705294245660,-1600.74,0.00029581,2]
[311663982,1705294245669,-500.0,0.00029581,2]
[311663983,1705294245678,-2302.81,0.00029581,2]
[311663984,1705294245687,-500.0,0.00029581,2]
[311663985,1705294245696,-2562.21,0.00029581,2]
[311663986,1705294245705,-500.0,0.00029581,2]
[311663987,1705294245714,-1838.05,0.00029581,2]
[311663988,1705294245723,-420.73170956,0.00029581,2]
[311663989,1705294245734,-500.0,0.00029581,2]
[311663990,1705294245743,-7625.73,0.00029581,2]
[311663991,1705294245753,-500.0,0.00029581,2]
[311663992,1705294245762,-500.0,0.00029581,2]
[311663993,1705294245771,-500.0,0.00029581,2]
[311663994,1705294245781,-500.0,0.00029581,2]
[311663995,1705294245790,-500.0,0.00029581,2]
[311663996,1705294245799,-500.0,0.00029581,2]
[311663998,1705294245809,-1226.28,0.00029581,2]
[311663999,1705294245818,-273.24057728,0.00029582,2]
[311664000,1705294245827,-188.83873156,0.00029582,2]
[311664001,1705294245837,-500.0,0.00029582,2]
[311664002,1705294245847,-500.0,0.00029582,2]
[311664003,1705294245856,-322.79178692,0.00029582,2]
[311664004,1705294245865,-909.98,0.00029582,2]
[311664005,1705294245875,-500.0,0.00029583,2]
[311664006,1705294245884,-500.0,0.00029583,2]
[311664007,1705294245893,-500.0,0.00029583,2]
[311664008,1705294245902,-500.0,0.00029583,2]
[311664009,1705294245911,-844.71,0.00029583,2]
[311664010,1705294245920,-603.54,0.00029583,2]
[311664012,1705294246008,-507.44515137,0.0002968,3]
[311664013,1705294246018,-500.0,0.00029758,2]
[311664014,1705294246027,-154.95620861,0.00029763,2]
[311664015,1705294246036,-153.84014321,0.00029776,2]
[311664016,1705294246046,-150.0,0.00029801,2]
[311664017,1705294246055,-545.5,0.00029854,2]
[311664018,1705294246064,-500.0,0.00029854,2]
[311664019,1705294246073,-500.0,0.00029854,2]
[311664020,1705294246082,-500.0,0.00029854,2]
[311664021,1705294246091,-500.0,0.00029854,2]
[311664022,1705294246100,-4340.56,0.00029854,2]
[311664023,1705294246110,-1123.57,0.00029854,2]
[311664024,1705294246119,-500.0,0.00029855,2]
[311664025,1705294246129,-500.0,0.00029855,2]
[311664026,1705294246138,-500.0,0.00029855,2]
[311664027,1705294246147,-500.0,0.00029855,2]
[311664028,1705294246157,-500.0,0.00029855,2]
[311664029,1705294246166,-500.0,0.00029855,2]
[311664030,1705294246175,-1600.74,0.00029855,2]
[311664031,1705294246184,-500.0,0.00029855,2]
[311664032,1705294246194,-2302.81,0.00029855,2]
[311664033,1705294246203,-2562.21,0.00029855,2]
[311664034,1705294246213,-500.0,0.00029855,2]
[311664035,1705294246221,-1838.05,0.00029855,2]
[311664036,1705294246231,-500.0,0.00029855,2]
[311664037,1705294246241,-7625.73,0.00029855,2]
[311664038,1705294246251,-500.0,0.00029855,2]
[311664039,1705294246261,-500.0,0.00029855,2]
[311664040,1705294246270,-500.0,0.00029855,2]
[311664041,1705294246279,-500.0,0.00029855,2]
[311664042,1705294246289,-1226.28,0.00029855,2]
[311664043,1705294246298,-500.0,0.00029856,2]
[311664044,1705294246307,-909.98,0.00029856,2]
[311664045,1705294246316,-500.0,0.00029857,2]
[311664046,1705294246326,-500.0,0.00029857,2]
[311664047,1705294246335,-500.0,0.00029857,2]
[311664048,1705294246344,-844.71,0.00029857,2]
[311664049,1705294246353,-603.54,0.00029857,2]
[311664050,1705294246362,-500.0,0.00029997,2]
[311664051,1705294246371,-500.0,0.00029997,2]
[311664052,1705294246381,-500.0,0.00029999,2]
[311664053,1705294246390,-389.0,0.0003,2]
[311664054,1705294246399,-545.5,0.00030128,2]
[311664055,1705294246408,-500.0,0.00030128,2]
[311664056,1705294246417,-500.0,0.00030128,2]
[311664057,1705294246426,-500.0,0.00030128,2]
[311664058,1705294246435,-613.25154807,0.00030128,2]
[311664059,1705294246444,-4340.56,0.00030128,2]
[311664060,1705294246453,-1123.57,0.00030128,2]
[311664061,1705294246462,-155.0,0.00030129,2]
[311664062,1705294246474,-350.93054121,0.00030129,2]
[311664063,1705294246484,-282.83454941,0.00030129,3]
[311664064,1705294246494,-4456.41779233,0.00030129,4]
[311664065,1705294246504,-500.0,0.00030129,2]
[311664066,1705294246513,-500.0,0.00030129,2]
[311664067,1705294246522,-154.99732422,0.00030129,4]
[311664068,1705294246531,-500.0,0.00030129,2]
[311664069,1705294246540,-500.0,0.00030129,2]
[311664070,1705294246550,-500.0,0.00030129,2]
[311664071,1705294246558,-973.88473704,0.00030129,2]
[311664072,1705294246765,-771.61,0.00028202,3]
[311664073,1705294246776,-2864.48,0.00028211,2]
[311664074,1705294246786,-1863.77362106,0.00028485,2]
[311664075,1705294246965,-1000.70637894,0.00028485,2]
[311664076,1705294246977,-2864.48,0.00028759,2]
[311664077,1705294246987,-2864.48,0.00029033,2]
[311664078,1705294246998,-478.10367477,0.00029207,2]
[311664079,1705294247007,-1170.75819925,0.00029307,2]
[311664162,1705295433308,-154.98450155,0.00026285,4]
[311664163,1705295433320,-250.97718045,0.00027483,2]
[311664164,1705295433330,-688.3625771,0.00027999,2]
[311664165,1705295433341,-4112.7341507,0.00028,2]
[311664166,1705295433352,-154.21631896,0.0002811,2]
[311664167,1705295433362,-719.62966614,0.00028197,3]
[311664168,1705295433376,-12052.57033386,0.00028197,3]
[311664169,1705295433387,-261.27836778,0.00028198,7]
[311664170,1705295433399,-18391.96,0.00028198,3]
[311664171,1705295433410,-15326.64,0.00028198,3]
[311664172,1705295433420,-155.0,0.00028199,2]
[311664173,1705295433431,-3468.59352094,0.00028199,2]
[311664174,1705295433441,-1463.09133499,0.00028205,2]
[311664175,1705295433454,-1696.35035059,0.00028205,2]
[311664184,1705295438320,-4797.14957534,0.00028205,2]
[311664185,1705295438331,-3941.45443239,0.00028206,2]
[311664186,1705295438340,-500.0,0.00028206,2]
[311664187,1705295438349,-500.0,0.00028206,2]
[311664188,1705295438359,-500.0,0.00028206,2]
[311664189,1705295438368,-787.37,0.00028206,2]
[311664190,1705295438377,-500.0,0.00028206,2]
[311664191,1705295438386,-546.88,0.00028206,2]
[311664192,1705295438395,-502.96184779,0.00028206,2]
[311664193,1705295438405,-500.0,0.00028206,2]
[311664194,1705295438415,-500.0,0.00028206,2]
[311664195,1705295438424,-856.71558128,0.00028207,2]
[311664196,1705295438433,-155.83905828,0.00028207,2]
[311664197,1705295438442,-254.75187703,0.00028207,2]
[311664198,1705295438451,-246.10686283,0.00028207,2]
[311664199,1705295438460,-1253.98841817,0.00028207,2]
[311664200,1705295438470,-368.47994274,0.00028207,2]
[311664201,1705295438479,-262.20236213,0.00028207,2]
[311664202,1705295438489,-155.47415093,0.00028207,2]
[311664203,1705295438499,-155.0231291,0.00028207,2]
[311664204,1705295438508,-10503.19627673,0.00028207,2]
[311664205,1705295438518,-1326.91768569,0.00028207,2]